Cogmind - Beta 16.1 @@@ ROGUE MODE // 2026.03.01 @ 23:56:56 Player: FL-IST Result: Destroyed by G-34 Mercenary with Small Laser Performance ------------- Evolutions (0) 0 Regions Visited (2) 400 Robots Destroyed (33) 165 Value Destroyed (684) 684 Prototype IDs (0) 0 Alien Tech Used (0) 0 Bonus (0) 0 TOTAL SCORE: 1249 Bonus ------- None Cogmind --------- Core Integrity 0/250 Matter 294/300 Energy 80/100 System Corruption 0% Temperature Warm (130) Movement Treading (160) Location -10/Mines Parts ------- > --- POWER (1) -------- (None) > --- PROPULSION (2) --- Light Treads Light Treads > --- UTILITY (2) ------ Large Storage Unit Seismic Detector > --- WEAPON (2) ------- Medium Laser Medium Laser > --- INVENTORY (15) --- Ion Engine Light Nuclear Core Light Treads Light Treads Light Treads VTOL Module VTOL Module VTOL Module VTOL Module Cooling System Cooling System Medium Storage Unit Visual Processing Unit Hacking Suite Medium Laser Peak State ------------ > --- POWER ------------ Ion Engine > --- PROPULSION ------- Light Treads Light Treads > --- UTILITY ---------- Cooling System Large Storage Unit > --- WEAPON ----------- Medium Laser Particle Gun > --- INVENTORY -------- Ion Engine Light Nuclear Core Light Treads Light Treads Light Treads VTOL Module VTOL Module VTOL Module VTOL Module Cooling System Medium Storage Unit Visual Processing Unit Seismic Detector [Rating: 11] Favorites ----------- Power Ion Engine Engine Ion Engine Propulsion Light Treads Treads Light Treads Utility Large Storage Unit Device Seismic Detector Storage Large Storage Unit Weapon Medium Laser Energy Gun Medium Laser Ballistic Gun Assault Rifle Impact Weapon Mace Build | -11 -10 -10 ------- Run | Yrd Mat Min Slots Evolved . | . . . Power . | . . . Propulsion . | . . . Utility . | . . . Weapon . | . . . Parts Attached 15 | 7 8 . Power 1 | 1 . . Engine 1 | 1 . . Core . | . . . Reactor . | . . . Propulsion 3 | 2 1 . Treads 3 | 2 1 . Leg . | . . . Wheel . | . . . Hover . | . . . Flight . | . . . Utility 5 | 2 3 . Device 3 | 1 2 . Storage 2 | 1 1 . Processor . | . . . Hackware . | . . . Protection . | . . . Artifact . | . . . Weapon 6 | 2 4 . Energy Gun 3 | . 3 . Energy Cannon . | . . . Ballistic Gun 2 | 2 . . Ballistic Cannon . | . . . Launcher . | . . . Special Weapon . | . . . Impact Weapon 1 | . 1 . Slashing Weapon . | . . . Piercing Weapon . | . . . Special Melee Weapon . | . . . Unidentified Prototypes . | . . . Parts Lost 4 | . 3 1 Power 1 | . . 1 Propulsion . | . . . Utility 1 | . 1 . Weapon 2 | . 2 . Highest Loss Streak 3 | . 3 1 To Critical Strikes . | . . . Average Backups 12 | 3 12 15 Power 1 | . 1 2 Propulsion 5 | 1 5 7 Utility 4 | . 4 5 Weapon . | . . 1 Tool/Special . | . . . Unused Backups 19 | 1 4 14 Power 2 | . . 2 Propulsion 10 | 1 2 7 Utility 6 | . 2 4 Weapon 1 | . . 1 Tool/Special . | . . . Average Slot Usage (%) 99 | . 99 100 Engine 14 | . 14 14 Treads 27 | . 27 28 Device 13 | . 13 14 Storage 14 | . 14 14 Energy Gun 15 | . 8 28 Ballistic Gun 12 | . 19 . Peak Build Rating 11 | 7 11 10 Average Rating 9 | 5 9 9 On Entrance 5 | . 7 10 Avg Prop Armor Cover (%) . | . . . Naked Turns . | . . . Heaviest Build 32 | 15 32 31 Greatest Support 40 | 40 40 40 Greatest Overweight (x) 1 | . 1 . Average Overweight (x) . | . . . Largest Inventory Capacity 15 | 8 15 15 Average Capacity 14 | 7 14 15 Most Carried 15 | 6 15 15 Average Carried 12 | 3 12 15 Final Capacity 15 | 8 15 15 Final Carried 15 | 5 15 15 Class Distribution -------------------- 100% | Mutant Dominant Class ---------------- Mutant | -10/Materials Mutant | -10/Mines Resources | -11 -10 -10 ----------- Run | Yrd Mat Min Matter Collected 705 | 312 374 19 Remotely . | . . . Salvage Created 1050 | 117 733 200 Parts 75 | 7 46 22 Haulers Intercepted 2 | . 2 . Recyclers Shooed 3 | . 3 . Parts Field Recycled . | . . . Retrieved Matter . | . . . Parts Self-Destructed . | . . . Prevented . | . . . Parts Restored . | . . . Kills | -11 -10 -10 ------- Run | Yrd Mat Min Combat Hostiles Destroyed 22 | . 14 8 Guns 22 | . 14 8 Classes Destroyed 8 | 2 6 . Worker 2 | . 1 1 Tunneler 2 | 2 . . Hauler 2 | . 2 . Recycler 1 | 1 . . Operator 1 | . 1 . Watcher 3 | . 3 . Swarmer 9 | . 3 6 Grunt 13 | . 11 2 Best Kill Streak 3 | 3 2 3 Combat Bots Only 3 | . 2 3 Max Kills in Single Turn 2 | 1 1 2 Gunslinging 1 | . . 1 Exploded . | . . . Melee . | . . . Uniques/NPCs Destroyed . | . . . Combat | -11 -10 -10 -------- Run | Yrd Mat Min Hostile Shots Fired 105 | . 53 52 Missed 19 | . 9 10 Hits 86 | . 44 42 Projectile 86 | . 44 42 Damage Taken 955 | . 545 410 Core 255 | . 102 153 Absorbed by Shields . | . . . Core Remaining (%) 100 | 100 . . Volleys Fired 97 | 7 63 27 Largest 2 | 2 2 2 Hottest 115 | 40 115 100 Shots Fired 190 | 14 122 54 Gun 190 | 14 122 54 Cannon . | . . . Launcher . | . . . Special . | . . . Kinetic 107 | 14 93 . Thermal 83 | . 29 54 Explosive . | . . . Electromagnetic . | . . . Robot Hit Streak 15 | 6 15 6 Robot Miss Streak 4 | 1 4 4 Penetration Max . | . . . Secondary Targets 1 | . . 1 Max Gunslinging Chain 1 | . . 1 Shots Hit Robots 111 | 10 76 25 Core Hits 53 | 4 36 13 Critical Kills 1 | . 1 . Critical Parts Destroyed . | . . . Critical Strikes 7 | . 3 4 Burn 6 | . 2 4 Destroy 1 | . 1 . Melee Attacks 1 | . 1 . Impact 1 | . 1 . Slashing . | . . . Piercing . | . . . Sneak Attacks . | . . . Combat Hostiles . | . . . Follow-up Attacks . | . . . Damage Inflicted 1479 | 127 1011 341 Guns 1479 | 127 1011 341 Cannons . | . . . Explosions . | . . . Melee . | . . . Ramming . | . . . Kinetic 862 | 127 735 . Thermal 617 | . 276 341 Explosive . | . . . Electromagnetic . | . . . Impact . | . . . Slashing . | . . . Piercing . | . . . Highest Corruption . | . . . Average Corruption . | . . . Corruption Purged . | . . . Corruption Blocked . | . . . Overload Shots . | . . . Overflow Damage . | . . . Projectiles . | . . . Explosions . | . . . Melee . | . . . Knockbacks . | . . . Impact . | . . . Kinetic . | . . . Secondary . | . . . Self-Inflicted Damage . | . . . Shots . | . . . Rammed . | . . . Targets Rammed . | . . . Kicked . | . . . Crushed . | . . . Highest Temperature 162 | . 162 112 Average Temperature 44 | . 48 39 Received Heat Transfer 417 | . 288 129 Siege Activations . | . . . Martial Activations . | . . . Shielding Activations . | . . . Robots Disrupted . | . . . Combat Hostiles . | . . . Robots Corrupted . | . . . Combat Hostiles . | . . . Parts Fried . | . . . Impact Corruptions . | . . . Robots Melted . | . . . Combat Hostiles . | . . . Parts Melted 2 | . . 2 Heat Transferred 2183 | . 888 1295 Parts Sabotaged . | . . . Parts Stolen . | . . . Parts Stripped . | . . . Power Chain Reactions . | . . . Alert | -11 -10 -10 ------- Run | Yrd Mat Min Maximum Alert Level . | . . . Low Security (%) 100 | 100 100 100 Level 1 . | . . . Level 2 . | . . . Level 3 . | . . . Level 4 . | . . . Level 5 . | . . . High Security . | . . . Max Security . | . . . Peak Influence 175 | 10 175 123 Initial 53 | . . 53 Average 44 | 1 55 32 Influence Increases 751 | 15 526 210 Destroy 0b10 Robot/C 440 | . 280 160 Destroy 0b10 Robot/NC 55 | 15 35 5 Destroy Leader 110 | . 80 30 Successful Hack 22 | . 22 . Select Force Hacks 30 | . 30 . Disable Machine 15 | . 15 . Destroy Structure 4 | . 4 . Lose Combat Pursuer 75 | . 60 15 Influence Decreases 751 | 15 389 347 Entered New Map 84 | . . 84 Time Decay 637 | 15 359 263 Lost Part 30 | . 30 . Squads Dispatched 3 | . 3 . Investigation 2 | . 2 . Extermination . | . . . Reinforcement 1 | . 1 . Assault . | . . . Garrison . | . . . Intercept . | . . . Searches Triggered . | . . . Construction Impeded . | . . . Haulers Reinforced . | . . . Active Scanning Responses . | . . . Cargo Convoy Interrupts . | . . . Stealth | -11 -10 -10 --------- Run | Yrd Mat Min Distress Signals . | . . . Communications Jammed . | . . . Distress Signals . | . . . Times Spotted 35 | . 23 12 Peak Tracking Total 4 | . 4 3 Tactical Retreats 3 | . 2 1 Traps | -11 -10 -10 ------- Run | Yrd Mat Min Traps Triggered 1 | . 1 . Indirectly . | . . . Trap Hack Attempts . | . . . Triggered . | . . . Disarmed . | . . . Reprogrammed . | . . . Reused . | . . . Traps Extracted . | . . . Installed . | . . . Triggered . | . . . Machines | -11 -10 -10 ---------- Run | Yrd Mat Min Machines Disabled 2 | . 2 . Max in Single Turn 1 | . 1 . Machines Repaired . | . . . Machines Dismantled . | . . . Machines Sabotaged . | . . . Overloaded Fab Kills . | . . . Hacking | -11 -10 -10 --------- Run | Yrd Mat Min Machines Accessed 8 | . 8 . Terminals 7 | . 7 . Fabricators . | . . . Repair Stations . | . . . Recycling Units 1 | . 1 . Scanalyzers . | . . . Garrison Access . | . . . Total Hacks 24 | . 24 . Successful 13 | . 13 . Failed 11 | . 11 . Catastrophic 1 | . 1 . Database Lockouts . | . . . Manual 23 | . 23 . Terminals 22 | . 22 . Fabricators . | . . . Repair Stations . | . . . Recycling Units 2 | . 2 . Scanalyzers . | . . . Garrison Access . | . . . Terminal Hacks 1 | . 1 . Robot Analysis 1 | . 1 . Fabricator Hacks . | . . . Repair Station Hacks . | . . . Recycling Unit Hacks 1 | . 1 . Retrieve Components 1 | . 1 . Scanalyzer . | . . . Garrison Access Hacks . | . . . Unauthorized Hacks 11 | . 11 . Terminals 10 | . 10 . Assimilate 1 | . 1 . Botnet 5 | . 5 . Skim 4 | . 4 . Fabricators . | . . . Repair Stations . | . . . Recycling Units 1 | . 1 . Tunnel 1 | . 1 . Scanalyzers . | . . . Garrison Access . | . . . Data Cores Recovered . | . . . Used . | . . . Hacking Detections 7 | . 7 . Full Trace Events 1 | . 1 . Feedback Events . | . . . Feedback Blocked . | . . . Robot Schematics Acquired . | . . . Robots Built . | . . . Authchips . | . . . Time . | . . . Total Robot Build Rating . | . . . Part Schematics Acquired . | . . . Parts Built . | . . . Authchips . | . . . Time . | . . . Total Part Build Rating . | . . . Part Studies Acquired . | . . . Parts Repaired . | . . . Time . | . . . Parts Recycled . | . . . Recycled Matter . | . . . Retrieved Matter . | . . . Retrieved Components 3 | . 3 . Parts Scanalyzed . | . . . Part Schematics Acquired . | . . . Parts Damaged . | . . . Bothacking | -11 -10 -10 ------------ Run | Yrd Mat Min Used RIF Installer . | . . . Robots Hacked . | . . . Non-combat . | . . . Combat . | . . . Robot Hacks Applied . | . . . Relay Couplers Released . | . . . Fabnet Peak Effective % . | . . . Robots Rewired . | . . . Allies Hacked . | . . . Hacks Repelled . | . . . Allies | -11 -10 -10 -------- Run | Yrd Mat Min Total Allies . | . . . Largest Group . | . . . Highest-Rated Group . | . . . Highest-Rated Ally . | . . . Total Orders . | . . . Ally Attacks . | . . . Total Damage . | . . . Kills . | . . . Allies Corrupted . | . . . Allies Melted . | . . . Intel | -11 -10 -10 ------- Run | Yrd Mat Min Active Infowar (turns) 2001 | 73 1255 673 Seismic 2001 | 73 1255 673 Robot Analysis Total 1 | . 1 . Derelict Logs Recovered 1 | . . 1 Drone Launches . | . . . Drone Recoveries . | . . . Exploration | -11 -10 -10 ------------- Run | Yrd Mat Min Turns Passed 2968 | 141 1768 1059 Spaces Moved 1383 | 70 860 453 Core 7 | 7 . . Treads 1376 | 63 860 453 Legs . | . . . Wheels . | . . . Hover . | . . . Flight . | . . . Fastest Speed 50 | 50 160 160 Average Speed 159 | 149 160 160 Slowest Speed 240 | 160 240 160 Overloaded Moves . | . . . Propulsion Burnouts . | . . . Robots Hopped . | . . . Potential Cave-ins . | . . . Cave-ins Triggered . | . . . Exploration Rate (%) 61 | 4 97 83 Regions Visited 2 Branch Regions 1 Pre-discovered Areas 1 | . 1 . Known Exits Taken . | . . . Unknown Exits Taken 2 | 1 1 . Scrap Searched 1 | . . 1 Spaces Dug 1 | . 1 . Terrain Destroyed 1 | . 1 . Melee 1 | . 1 . Projectile . | . . . AOE . | . . . Terrain Rammed . | . . . Walls Destroyed . | . . . Machines Disabled . | . . . Actions | -11 -10 -10 --------- Run | Yrd Mat Min Total 1948 | 90 1126 732 Wait 414 | . 165 249 Move 1381 | 69 859 453 Hop . | . . . Pick Up 24 | 6 18 . Fast Attach 12 | 7 5 . Attach 2 | . 2 . Detach . | . . . Swap 7 | . 4 3 Drop 10 | 1 9 . Fire 97 | 7 63 27 Melee 1 | . 1 . Ram . | . . . Kick . | . . . Crush . | . . . Escape Stasis . | . . . Rewire . | . . . Trap . | . . . Miscellaneous . | . . . Route ------- -11/Scrapyard -10/Materials (discovered 5 exits: [*Mat x3] / [*Min x2]) -10/Mines (discovered 3 exits: [*Mat] / [*Exi] / [*Sub]) History --------- Turn | Location | Event 19 | -11/Scrapyard | Discovered new exit (range 15) 142 | -11/Scrapyard | Entered Materials 314 | -10/Materials | Build established: Mutant 363 | -10/Materials | Discovered new exit (range 13) 860 | -10/Materials | Discovered new exit (range 14) 1188 | -10/Materials | Discovered new exit (range 11) 1409 | -10/Materials | Discovered new exit (range 6) 1411 | -10/Materials | Lost 3 parts (1u2w) 1863 | -10/Materials | Discovered new exit (range 13) 1910 | -10/Materials | Entered Mines 1917 | -10/Mines | Core integrity fell below 50% 1974 | -10/Mines | Discovered new exit (range 9) 2141 | -10/Mines | Deemed a non-threat by the Exiles lab entrance 2143 | -10/Mines | Discovered new exit (range 5) 2157 | -10/Mines | Discovered new exit (range 8) 2793 | -10/Mines | Excavation squad dispatched 2793 | -10/Mines | A large section of the Mines collapsed 2958 | -10/Mines | Core integrity fell below 20% 2969 | -10/Mines | Destroyed by G-34 Mercenary with Small Laser Last Messages --------------- 02155_ U-05 Engineer builds a Wall. 02156_ T-07 Excavator is excavating. 02157_ EXIT=FOUND 02195_ K-01 Serf destroyed. 02425_ S-10 Pest destroyed. 02440_ S-10 Pest suffers critical hit (Burn). 02440_ Lgt. Assault Rifle melted. 02440_ S-10 Pest destroyed. 02443_ Acquired 19 matter. 02462_ Acquired derelict log, extracted data. Data stored: Storage entrances (x1). 02793_ ALERT: Suspicious cave-in, suspected derelict activity in mines. Dispatching escorted excavation squad. 02959_ U-05 Engineer lays Concrete. 02961_ Ion Engine destroyed. 02962_ T-07 Excavator is excavating. 02964_ U-05 Engineer lays Concrete. 02967_ G-34 Mercenary suffers critical hit (Burn). 02969_ T-07 Excavator is excavating. 02969_ U-05 Engineer lays Concrete. Map ----- +----------------------------------------------------+ | | | | | | | | | | | | | | | | | | | | | | | | | | | | | | | | | ????????????????????????????????????????????? | | ????????????????????????????????????####????? | | ??????????????????##????############# ##???? | | ?????????????????## ???# #???? | | ?????????????????# ; ??# #???? | | ????????????????## #?# ######## #???? | | ???????????###### #####??????## #???? | | ?????????? t g ##???????## #???? | | ????????????# ; ugt##????????# ##???? | | ????????????# ; ug@##????????# #????? | | ????????????## ;; ; ####???###### #????? | | ?????????????## % #???????# #????? | | ??????????????##; ! #????????# #### #????? | | ???????????????# % ??????????????# #????? | | ?????????????? ???????????????# #????? | | ###????????? ???????????????# #????? | | #??????????#### ????????????????# ##???? | | # #?????????????# ????????????????# #???? | | # #????????????? ????????????????## #???? | | # #????????????# ??????????????????# ##???? | | # #######??????????????????????????# ##???? | | #??????????????????????## #???? | | #########???????????????????????????# #???? | | ???????????????????????????????????## ##??? | | ????????????????????????????????#### ##?? | | ?????????????????????????????# ## #?? | | ????????????????????????????## """ #?? | | ????????????????????????????# """ #?? | | ????????????????????????????# """ #?? | | ????????????????????????????# ### #?? | | ????????????????????????????# #??# #?? | | ????????????????????????????# ???# ##?? | | ??????????????????????????? ????## ##??? | | ??????????????????????????#### ?????# #???? | +----------------------------------------------------+ Best States ------------- Heat Dissipation 47 Energy Generation 10 Energy Capacity 250 Matter Stores 300 Matter Capacity 300 Sight Range 16 Terrain Scan Density 10 Evasion (%) 40 Recoil Reduction 2 Item Schematics ----------------- None Robot Schematics ------------------ None Fabricated ------------ Nothing Repaired ---------- Nothing Studied --------- None Alien Tech Used ----------------- None Achievements -------------- None Challenges ------------ None Game ------ Seed ThermalAbsorptionPurifier Manual? 0 Play Time 00:13:44 Cumulative 313.3 hours Start 2026.03.01 @ 23:42:53 End 2026.03.01 @ 23:56:56 Sessions 1 Manual Loads 0 Difficulty Rogue Special Mode None Game No. 250 Rogue 250 Adventurer 0 Explorer 0 Win Type - Total 18 Types 9/0/7/2/0/0/0/0/0/0 Lore% 84 Gallery% 74 Achievement% 61 Wizard Run 0 Options --------- Layout 1 ASCII 0 Keyboard 0 Movement Numpad Keybinds 0 Fullscreen 1 Font 32/SmallcapsGlow Map View 77x35 Zoom Use 0% Tactical HUD 1 Map Filters NONE Filters NONE Steam 1 RUN: 18a3ff4a-b78a-4cd1-b1f0-d9fa85d0141e